[Event "8th Montevideo Open 2025"]
[Site "Montevideo"]
[Date "2025.02.05"]
[Round "5.21"]
[White "Guillen Ramirez, Jose Antonio"]
[Black "Delgado, Nazareno"]
[Result "0-1"]
[Annotator "NA RC"]
[ECO "C00"]
[WhiteElo "2114"]
[BlackElo "1819"]
[PlyCount "94"]
[EventDate "2025.02.01"]
[EventType "swiss"]
[EventCountry "URU"]
[SourceTitle "playchess.com"]
[Source "ChessBase"]
[SourceQuality "1"]
[TimeControl "5400+30"]

1. e4 {[%emt 0:25:34]} e6 {[%emt 0:00:04]} 2. Nf3 {[%emt 0:03:15]} d5 {[%emt 0:00:05]} 3. e5 {[%emt 0:00:20]} c5 {[%emt 0:00:30]} 4. g3 {[%emt 0:00:24]} Nc6 {[%emt 0:00:15]} 5. Bg2 {[%emt 0:01:19]} Qc7 {[%emt 0:01:07]} 6. Qe2 {[%emt 0:00:09]} Nge7 {[%emt 0:00:30]} 7. O-O {[%emt 0:00:13]} b6 {[%emt 0:04:01]} 8. Re1 {[%emt 0:00:44]} Nf5 {[%emt 0:02:22]} 9. c3 {[%emt 0:02:29]} a5 {[%emt 0:03:39]} 10. d3 {[%emt 0:01:37]} Ba6 {[%emt 0:03:02]} 11. g4 {[%emt 0:03:11]} Nfe7 {[%emt 0:00:25]} 12. a4 {[%emt 0:00:43]} Ng6 {[%emt 0:02:02]} 13. Na3 {[%emt 0:00:39]} c4 {[%emt 0:01:16]} 14. d4 {[%emt 0:02:27]} Bxa3 {[%emt 0:02:23]} 15. Rxa3 {[%emt 0:00:07]} b5 {[%emt 0:00:23]} 16. axb5 {[%emt 0:00:24]} Bxb5 {[%emt 0:00:06]} 17. Bg5 {[%emt 0:18:20]} h6 {[%emt 0:06:34]} 18. Be3 {[%emt 0:00:37]} Qe7 {[%emt 0:03:03]} 19. Nd2 {[%emt 0:11:39]} a4 {[%emt 0:05:32]} 20. f4 {[%emt 0:01:27]} Na7 {[%emt 0:05:02]} 21. f5 {[%emt 0:10:41]} Nf8 {[%emt 0:00:39]} 22. Rf1 {[%emt 0:01:01]} Nd7 {[%emt 0:01:16]} 23. Raa1 {[%emt 0:01:39]} Nb6 {[%emt 0:02:56]} 24. Rf2 {[%emt 0:00:56]} Bd7 {[%emt 0:04:12]} 25. Raf1 {[%emt 0:00:49]} Qd8 {[%emt 0:02:37]} 26. Rf3 {[%emt 0:07:20]} Nb5 {[%emt 0:02:02]} 27. Nb1 {[%emt 0:02:23]} a3 {[%emt 0:03:27]} 28. bxa3 {[%emt 0:00:03]} Nxa3 {[%emt 0:00:09]} 29. Nxa3 {[%emt 0:00:01]} Rxa3 {[%emt 0:00:08]} 30. Bc1 {[%emt 0:00:03]} Rb3 {[%emt 0:01:29]} 31. f6 {[%emt 0:00:19]} g6 {[%emt 0:01:36]} 32. Rh3 {[%emt 0:00:14]} Na4 {[%emt 0:00:22]} 33. Rxh6 {[%emt 0:02:11]} Rxh6 {[%emt 0:00:04]} 34. Bxh6 {[%emt 0:00:02]} Nxc3 {[%emt 0:00:24]} 35. Qf2 {[%emt 0:00:21]} Qb6 {[%emt 0:00:55]} 36. Be3 {[%emt 0:01:02]} Rb2 {[%emt 0:04:06]} 37. Qh4 {[%emt 0:01:16]} Ne2+ {[%emt 0:00:09]} 38. Kh1 {[%emt 0:00:16]} Qb4 {[%emt 0:00:37]} 39. Bh6 {[%emt 0:02:48]} Nxd4 {[%emt 0:40:31]} 40. Bg7 Kd8 {[%emt 0:00:00]} 41. Qh8+ {[%emt 0:00:16]} Be8 {[%emt 0:00:00]} 42. Bf8 {[%emt 0:01:11]} Qd2 {[%emt 0:00:00]} 43. Be7+ {[%emt 0:00:18]} Kd7 {[%emt 0:00:00]} 44. Qh3 {[%emt 0:00:16]} Rb3 {[%emt 0:00:00]} 45. Qh4 {[%emt 0:00:07]} c3 {[%emt 0:00:00]} 46. Bf8 {[%emt 0:01:24]} g5 {[%emt 0:00:00]} 47. Qh8 {[%emt 0:00:51]} c2 {[%emt 0:00:00]} 0-1

[Event "8th Montevideo Open 2025"]
[Site "Montevideo"]
[Date "2025.02.05"]
[Round "5.22"]
[White "Silva, Juliana Figueira The"]
[Black "Lanzilotta, Marcelo"]
[Result "1-0"]
[Annotator "RC"]
[ECO "A57"]
[WhiteElo "1850"]
[BlackElo "1958"]
[PlyCount "143"]
[EventDate "2025.02.01"]
[EventType "swiss"]
[EventCountry "URU"]
[SourceTitle "playchess.com"]
[Source "ChessBase"]
[SourceQuality "1"]
[TimeControl "5400+30"]

1. d4 {[%emt 0:00:04]} c5 {[%emt 0:09:38]} 2. d5 {[%emt 0:00:12]} Nf6 {[%emt 0:00:06]} 3. c4 {[%emt 0:00:07]} b5 {[%emt 0:00:03]} 4. Qc2 {[%emt 0:00:08]} b4 {[%emt 0:02:45]} 5. e4 {[%emt 0:00:31]} d6 {[%emt 0:00:01]} 6. f4 {[%emt 0:00:42]} g6 {[%emt 0:01:02]} 7. Nf3 {[%emt 0:01:22]} Bg7 {[%emt 0:00:05]} 8. Bd3 {[%emt 0:00:26]} O-O {[%emt 0:00:52]} 9. O-O {[%emt 0:00:22]} Qc7 {[%emt 0:01:55]} 10. e5 {[%emt 0:16:37]} dxe5 {[%emt 0:01:04]} 11. fxe5 {[%emt 0:02:40]} Ng4 {[%emt 0:00:05]} 12. Be4 {[%emt 0:01:45]} Bb7 {[%emt 0:04:56]} 13. d6 {[%emt 0:06:56]} exd6 {[%emt 0:00:58]} 14. exd6 {[%emt 0:00:42]} Qd7 {[%emt 0:00:30]} 15. Bxb7 {[%emt 0:04:12]} Qxb7 {[%emt 0:00:03]} 16. Bf4 {[%emt 0:02:33]} Nd7 {[%emt 0:01:53]} 17. Nbd2 {[%emt 0:01:59]} Rfe8 {[%emt 0:02:24]} 18. Rfe1 {[%emt 0:03:50]} Qc6 {[%emt 0:01:27]} 19. Rad1 {[%emt 0:04:01]} a5 {[%emt 0:02:03]} 20. Nf1 {[%emt 0:06:11]} a4 {[%emt 0:00:58]} 21. h3 {[%emt 0:01:17]} Ngf6 {[%emt 0:05:31]} 22. Ne5 {[%emt 0:04:47]} Nxe5 {[%emt 0:00:13]} 23. Bxe5 {[%emt 0:00:05]} Nd7 {[%emt 0:00:37]} 24. Bxg7 {[%emt 0:01:42]} Kxg7 {[%emt 0:00:03]} 25. Ne3 {[%emt 0:01:07]} Re6 {[%emt 0:04:14]} 26. Qd2 {[%emt 0:07:25]} Rae8 {[%emt 0:02:34]} 27. Nc2 {[%emt 0:03:02]} Rxe1+ {[%emt 0:04:03]} 28. Rxe1 {[%emt 0:03:17]} Rxe1+ {[%emt 0:00:03]} 29. Nxe1 {[%emt 0:01:05]} Qe4 {[%emt 0:00:22]} 30. b3 {[%emt 0:02:01]} a3 {[%emt 0:04:30]} 31. Nf3 {[%emt 0:01:19]} f6 {[%emt 0:00:19]} 32. Nh2 {[%emt 0:08:49]} g5 {[%emt 0:06:54]} 33. Nf1 {[%emt 0:03:44]} Qd4+ {[%emt 0:01:57]} 34. Qxd4 {[%emt 0:00:21]} cxd4 {[%emt 0:00:01]} 35. Ng3 {[%emt 0:00:39]} Kg6 {[%emt 0:02:10]} 36. Ne4 {[%emt 0:04:07]} f5 {[%emt 0:00:20]} 37. c5 {[%emt 0:01:15]} Ne5 {[%emt 0:00:01]} 38. Nf2 {[%emt 0:01:38]} Kf6 {[%emt 0:00:14]} 39. Kf1 {[%emt 0:00:17]} Ke6 {[%emt 0:00:10]} 40. Ke2 {[%emt 0:00:08]} Kd5 {[%emt 0:04:59]} 41. Nd3 {[%emt 0:00:16]} Nc6 {[%emt 0:00:30]} 42. d7 {[%emt 0:01:17]} Nd8 {[%emt 0:01:51]} 43. Nxb4+ {[%emt 0:01:20]} Kxc5 {[%emt 0:00:05]} 44. Nc2 {[%emt 0:00:12]} Ne6 {[%emt 0:01:12]} 45. Kd3 {[%emt 0:00:54]} Kd6 {[%emt 0:01:12]} 46. d8=Q+ {[%emt 0:01:08]} Nxd8 {[%emt 0:00:03]} 47. Nxd4 {[%emt 0:00:18]} Ke5 {[%emt 0:02:10]} 48. b4 {[%emt 0:01:58]} f4 {[%emt 0:02:17]} 49. Nc2 {[%emt 0:01:11]} h5 {[%emt 0:00:38]} 50. Nxa3 {[%emt 0:00:38]} g4 {[%emt 0:00:35]} 51. hxg4 {[%emt 0:00:08]} hxg4 {[%emt 0:00:02]} 52. Nc4+ {[%emt 0:00:22]} Kd5 {[%emt 0:00:12]} 53. Nd2 {[%emt 0:01:14]} Nc6 {[%emt 0:00:22]} 54. a3 {[%emt 0:01:29]} Ne5+ {[%emt 0:06:23]} 55. Kc3 {[%emt 0:01:29]} f3 {[%emt 0:00:49]} 56. gxf3 {[%emt 0:00:05]} g3 {[%emt 0:00:00]} 57. Nf1 {[%emt 0:00:04]} g2 {[%emt 0:00:02]} 58. Ne3+ {[%emt 0:00:19]} Kc6 {[%emt 0:00:15]} 59. Nxg2 {[%emt 0:00:05]} Nxf3 {[%emt 0:00:03]} 60. a4 {[%emt 0:00:12]} Ne5 {[%emt 0:01:31]} 61. Nf4 {[%emt 0:00:24]} Nd7 {[%emt 0:01:24]} 62. Nd3 {[%emt 0:00:27]} Kd5 {[%emt 0:01:01]} 63. b5 {[%emt 0:00:23]} Kd6 {[%emt 0:01:52]} 64. a5 {[%emt 0:00:24]} Nf6 {[%emt 0:00:20]} 65. Kc4 {[%emt 0:00:30]} Nd7 {[%emt 0:01:30]} 66. Kd4 {[%emt 0:01:11]} Nf8 {[%emt 0:00:43]} 67. Nc5 {[%emt 0:00:18]} Ng6 {[%emt 0:00:35]} 68. Ne4+ {[%emt 0:00:15]} Kc7 {[%emt 0:00:15]} 69. Kc5 {[%emt 0:00:27]} Ne5 {[%emt 0:00:58]} 70. b6+ {[%emt 0:00:15]} Kb7 {[%emt 0:03:12]} 71. Kb5 {[%emt 0:00:38]} Nd7 {[%emt 0:00:04]} 72. Nc5+ {[%emt 0:00:35]} 1-0

[Event "8th Montevideo Open 2025"]
[Site "Montevideo"]
[Date "2025.02.05"]
[Round "5.23"]
[White "Fernandez Rodriguez, Jose Antonio"]
[Black "Varela, Mateo"]
[Result "0-1"]
[Annotator "TA"]
[ECO "B33"]
[WhiteElo "2140"]
[BlackElo "1955"]
[PlyCount "120"]
[EventDate "2025.02.01"]
[EventType "swiss"]
[EventCountry "URU"]
[SourceTitle "playchess.com"]
[Source "ChessBase"]
[SourceQuality "1"]
[TimeControl "5400+30"]

{[%evp 31,120,36,34,-485,-492,-491,-486,-418,-302,-623,-566,-636,-635,-400,-328,-310,-300,-290,-240,-231,-222,-220,-219,-236,-233,-283,-260,-272,-272,-272,-277,-385,-254,-271,-222,-232,-222,-233,-210,-216,-195,-202,-181,-176,-189,-237,-195,-273,-247,-241,-229,-227,-235,-319,-193,-279,-277,-302,-277,-456,-460,-508,-504,-499,-501,-525,-485,-621,-621,-584,-577,-584,-532,-714,-424,-543,-541,-890,-919,-1033,-1040,-2007,-1932,-29976,-29977,-29978,-29979,-29978,-29979,-29982,-5222]} 1. e4 {[%emt 1:31:00]} c5 {[%emt 1:31:00]} 2. Nf3 {[%emt 0:00:30]} Nc6 {[%emt 0:00:30]} 3. d4 {[%emt 0:00:30]} cxd4 {[%emt 0:00:30]} 4. Nxd4 {[%emt 0:00:30]} Nf6 {[%emt 0:00:30]} 5. Nc3 {[%emt 0:00:30]} e5 {[%emt 0:00:30]} 6. Ndb5 {[%emt 0:00:30]} d6 {[%emt 0:00:30]} 7. Bg5 {[%emt 0:00:30]} a6 {[%emt 0:00:30]} 8. Bxf6 {[%emt 0:00:30]} gxf6 {[%emt 0:00:30]} 9. Na3 {[%emt 0:00:30]} b5 {[%emt 0:00:30]} 10. Nd5 {[%emt 0:00:00]} f5 {[%emt 0:00:30]} 11. c3 {[%emt 0:01:00]} Bg7 {[%emt 0:00:30]} 12. Bd3 {[%emt 0:00:30]} Be6 {[%emt 0:00:30]} 13. Qh5 {[%emt 0:00:30]} O-O {[%emt 0:00:30]} 14. exf5 {[%emt 0:00:30]} Bxd5 {[%emt 0:00:30]} 15. f6 {[%emt 0:00:30]} e4 {[%emt 0:00:30]} 16. fxg7 {[%emt 0:00:30]} Re8 {[%emt 0:00:30] Black sacrificed a pawn} 17. O-O $2 {[%emt 0:00:30][%mdl 8192] White does not recover from this. B33: Sicilian: Pelikan and Sveshnikov Variations.} (17. Be2 $14 {keeps the upper hand.} Re5 18. Qh6) 17... Re5 $19 {[%emt 0:00:30]} (17... exd3 18. Qxd5 Ne5 19. Rae1 $11) 18. Qe2 {[%emt 0:00:30]} exd3 {[%emt 0:00:30]} 19. Qxd3 {[%emt 0:00:30] Black is clearly winning.} Qh4 $146 {[%emt 0:00:30][%cal Oe5h5]} (19... Kxg7 20. f4 Rh5 (20... Qb6+ $2 21. Rf2 $19) 21. c4 bxc4 22. Nxc4 $19) (19... Qg5 20. g3 Qh5 21. Rad1 Bf3 22. Rde1 Rae8 23. Re3 Be2 24. Qxd6 Bxf1 25. Qxc6 Qd1 {0-1 Srivatsan,K (2001)-Markovic,Z (2293) Veliko Gradiste Silver Lake op-A 2023 (2)}) 20. Rfe1 $2 {[%emt 0:00:30]} (20. Rad1) 20... Rae8 {[%emt 0:00:30]} (20... Kxg7 21. Rxe5 dxe5 22. Qxd5 $11) 21. Rxe5 {[%emt 0:00:30]} Rxe5 {[%emt 0:00:30]} 22. Rd1 {[%emt 0:00:30]} Rh5 {[%emt 0:00:30]} 23. Qg3 {[%emt 0:00:30]} Qxg3 {[%emt 0:00:30]} (23... Bxa2 24. Qxd6 Kxg7 25. h3) 24. hxg3 {[%emt 0:00:30]} Ne7 {[%emt 0:00:30][%cal Oh5e5]} (24... Bxa2 25. Rxd6 Rc5 26. Nc2 $19) 25. Nc2 {[%emt 0:00:30]} Rh6 {[%emt 0:00:30]} 26. Nb4 {[%emt 0:00:30]} Bb7 {[%emt 0:00:30]} 27. Nd3 {[%emt 0:00:30]} Nd5 {[%emt 0:00:30]} (27... Kxg7 28. Nf4 $19) 28. a3 {[%emt 0:00:30]} Kxg7 {[%emt 0:00:30]} 29. f3 {[%emt 0:00:30]} Re6 {[%emt 0:00:30]} 30. Rd2 {[%emt 0:00:30]} a5 {[%emt 0:00:30]} 31. Nf2 {[%emt 0:00:30]} Nf6 {[%emt 0:00:30]} 32. Nh3 {[%emt 0:00:30]} d5 {[%emt 0:00:30]} 33. Nf4 {[%emt 0:00:30]} Rb6 {[%emt 0:00:30]} 34. Rd4 {[%emt 0:00:30]} Kf8 {[%emt 0:00:30]} 35. Kf2 {[%emt 0:00:30]} Ke7 {[%emt 0:00:30]} 36. g4 {[%emt 0:00:30]} Kd6 {[%emt 0:00:30]} 37. g5 {[%emt 0:00:30]} Nd7 {[%emt 0:00:30]} 38. Nh5 {[%emt 0:00:30]} (38. Nd3 {was called for.}) 38... Rc6 {[%emt 0:00:30]} 39. Rf4 {[%emt 0:00:30]} (39. Ng7 $142) 39... Ke7 {[%emt 0:00:30]} 40. Ng7 {[%emt 0:00:30]} Kf8 {[%emt 0:00:30]} 41. Nf5 {[%emt 0:00:30]} Rg6 {[%emt 0:00:30]} 42. Nd4 {[%emt 0:00:30]} Ba6 {[%emt 0:00:30][%cal Od7e5]} (42... Rxg5 $2 43. Ne6+ (43. Nxb5 $2 {is the wrong capture.} Ne5 $19) 43... Ke7 44. Nxg5 $18) 43. Rf5 {[%emt 0:00:30]} (43. Rh4 $142) 43... Rd6 {[%emt 0:00:30]} 44. Rf4 {[%emt 0:00:30]} Ne5 {[%emt 0:00:30]} 45. Ke3 {[%emt 0:00:30] Dodges Nd3} (45. Rh4) 45... Nc4+ {[%emt 0:00:30]} 46. Kf2 {[%emt 0:00:30]} Nxb2 {[%emt 0:00:30]} 47. Rh4 {[%emt 0:00:30]} Nd1+ {[%emt 0:00:30]} 48. Kg3 {[%emt 0:00:30]} Rg6 {[%emt 0:00:30]} 49. f4 {[%emt 0:00:30]} Nxc3 {[%emt 0:00:30]} 50. Rxh7 {[%emt 0:00:30]} Ne4+ {[%emt 0:00:30]} 51. Kh2 {[%emt 0:00:30]} Kg8 {[%emt 0:00:30] Inhibits Rh8+.} 52. Rh5 {[%emt 0:00:30]} Nd6 {[%emt 0:00:30]} 53. Nc6 {[%emt 0:00:30]} Re6 {[%emt 0:00:30] Prevents Ne7+.} 54. Ne5 {[%emt 0:00:30]} b4 {[%emt 0:00:30]} 55. axb4 {[%emt 0:00:30]} axb4 {[%emt 0:00:30]} 56. Nd7 {[%emt 0:00:30]} b3 {[%emt 0:00:30] And now ...b2 would win.} 57. Nf6+ {[%emt 0:00:30] [#]} Rxf6 $1 {[%emt 0:00:30] Black mates.} 58. gxf6 {[%emt 0:00:30]} (58. Rh3 Rxf4) 58... b2 {[%emt 0:00:30]} 59. Rg5+ {[%emt 0:00:30]} Kh7 {[%emt 0:00:30]} 60. f5 {[%emt 0:00:30] [#]} Nxf5 $1 {[%emt 0:00:30][%mdl 512] Weighted Error Value: White=0.71/Black=0.37  Mistake:       	White=5     	---        Inaccurate:     	White=4     	Black=3      OK:         	White=8     	Black=13     Best:        	---       	Black=1} 0-1

[Event "8th Montevideo Open 2025"]
[Site "Montevideo"]
[Date "2025.02.05"]
[Round "5.24"]
[White "Escofet, Jaime"]
[Black "Fabra, Nahiara"]
[Result "1-0"]
[Annotator "TA"]
[ECO "B51"]
[WhiteElo "1951"]
[BlackElo "1792"]
[PlyCount "77"]
[EventDate "2025.02.01"]
[EventType "swiss"]
[EventCountry "URU"]
[SourceTitle "playchess.com"]
[Source "ChessBase"]
[SourceQuality "1"]
[TimeControl "5400+30"]

{[%evp 9,77,3,31,25,29,24,39,6,0,5,6,-9,0,-32,-9,-64,-34,-23,-20,-37,20,-10,52,37,54,44,72,58,73,37,84,60,144,0,0,0,0,0,0,0,0,0,5,1,80,97,133,41,43,57,58,58,95,0,32,-1142,-43,-1116,-1113,-1048,737,717,712,724,29996,29997,29997,29991,29991,29992]} 1. e4 {[%emt 0:00:01]} c5 {[%emt 0:01:07]} 2. Nf3 {[%emt 0:00:30]} d6 {[%emt 0:00:30]} 3. Bb5+ {[%emt 0:00:30]} Nd7 {[%emt 0:00:30]} 4. d4 {[%emt 0:00:30]} cxd4 {[%emt 0:00:30]} 5. Qxd4 {[%emt 0:00:30]} e6 {[%emt 0:10:12]} 6. c4 {[%emt 0:00:03] B51: Sicilian: Moscow Variation (3 Bb5+) without 3...Bd7.} Ngf6 {[%emt 0:04:50]} 7. O-O {[%emt 0:03:52]} Be7 {[%emt 0:00:30]} 8. Bg5 {[%emt 0:00:30] White is slightly better.} O-O {[%emt 0:00:30]} 9. Nc3 {[%emt 0:00:30]} a6 {[%emt 0:00:30]} 10. Ba4 {[%emt 0:00:30]} Qc7 {[%emt 0:00:30]} 11. Bc2 $146 {[%emt 0:00:30][%cal Oe4e5]} (11. Bxd7 Bxd7 12. Rad1 Rfd8 13. Rfe1 Rac8 14. e5 dxe5 15. Nxe5 Ba4 16. Nxa4 Rxd4 17. Rxd4 {0-1 Saric,I (2690)-Firouzja,A (2744) Zagreb Superbet Blitz 2024 (18)}) 11... Ne5 {[%emt 0:00:30]} 12. b3 {[%emt 0:00:30]} (12. Nxe5 $11 dxe5 13. Qe3) 12... Nxf3+ {[%emt 0:00:30]} 13. gxf3 {[%emt 0:00:30]} e5 {[%emt 0:51:27]} 14. Qd2 {[%emt 0:21:05]} Bh3 {[%emt 0:02:00]} (14... Qd7 $15) 15. Rfe1 {[%emt 0:00:48]} Qc8 {[%emt 0:00:30]} (15... Qd8 $11) 16. Kh1 $14 {[%emt 0:00:30]} Qe6 {[%emt 0:00:30]} 17. Rg1 {[%emt 0:00:30]} Kh8 {[%emt 0:00:30]} 18. Rad1 {[%emt 0:00:30]} Rg8 {[%emt 0:00:30]} 19. Qe3 {[%emt 0:00:30]} h6 {[%emt 0:00:30]} (19... Nh5 $1 $14 {should be considered.}) 20. Bxf6 $16 {[%emt 0:00:30]} Bxf6 {[%emt 0:21:41]} (20... Qxf6 $14 21. f4 Qh4) 21. Rg3 {[%emt 0:13:01]} ({White should play} 21. Rd3 $16 {f4 would now be deadly.} Qe8 22. f4 (22. Rxd6 Qf8 $16)) 21... Bg5 $11 {[%emt 0:00:30]} 22. Qe2 {[%emt 0:00:30]} Bf4 {[%emt 0:00:30]} 23. Rgg1 {[%emt 0:00:30]} Rad8 {[%emt 0:00:30]} 24. Nd5 {[%emt 0:00:30]} g5 {[%emt 0:00:30]} 25. b4 {[%emt 0:00:30]} h5 {[%emt 0:00:30][%cal Bh6h5,Bh5g4][%mdl 32]} 26. Bb3 {[%emt 0:00:30]} g4 {[%emt 0:00:30]} (26... Qh6 $11 {keeps the balance.}) 27. fxg4 $16 {[%emt 0:00:30]} hxg4 {[%emt 0:00:30]} 28. c5 {[%emt 0:00:30]} (28. Nxf4 $1 $16 exf4 29. Rd5) 28... Qh6 $14 {[%emt 0:00:30]} 29. Nxf4 {[%emt 0:00:30]} exf4 {[%emt 0:00:30]} 30. Qb2+ {[%emt 0:00:30]} (30. Bxf7 g3 31. fxg3 Bg4 $11) (30. Rxd6 {simplifies} Rxd6 31. cxd6 Qxd6 32. Bxf7 Rg7 33. Bb3) 30... Rg7 {[%emt 0:00:30]} 31. Rd3 {[%emt 0:00:30] White is much more active.} ({Much less strong is} 31. Bxf7 g3 32. fxg3 Kh7 $11) (31. Rd5 $16) 31... f3 {[%emt 0:00:30]} 32. Rgd1 $2 {[%emt 0:00:30][%mdl 8192] [#]} (32. Bxf7 $14 Kh7 33. Bd5) 32... Bg2+ $1 $19 {[%emt 0:00:30]} 33. Kg1 {[%emt 0:00:30][%cal Rd3d6] [#]} Qh3 $1 {[%emt 0:00:30][%cal Og2h1] ( -> ...Bh1!)} 34. Qf6 {[%emt 0:00:30]} Rd7 $4 {[%emt 0:00:30][%mdl 8192]} (34... Bf1 $19 35. Qxd8+ Kh7 36. Qh4+ Qxh4 37. Kxf1 Qxh2) 35. Rxd6 $18 {[%emt 0:00:30]} (35. cxd6 $2 Bh1 $19) 35... Rxd6 {[%emt 0:00:30]} 36. Rxd6 {[%emt 0:00:30]} (36. cxd6 $2 {too greedy.} Bh1 $19) 36... Qh7 {[%emt 0:00:30] Black is weak on the dark squares} 37. Rd8+ {[%emt 0:00:30] White mates.} Qg8 {[%emt 0:00:30]} 38. Rxg8+ {[%emt 0:00:30]} Kxg8 {[%emt 0:00:30]} 39. e5 {[%emt 0:00:30] Weighted Error Value: White=0.37/Black=0.55  Loses game:     	White=2     	---        Mistake:       	White=4     	Black=5      Inaccurate:     	White=4     	Black=5      OK:         	White=6     	Black=5      Best:        	White=4     	---        Strong:       	---       	Black=1} 1-0